Cogmind - Beta 14 @@@ ROGUE MODE // 2024.09.03 @ 12:01:34 Player: Triffids Result: Self-destructed Performance ------------- Evolutions (1) 500 Regions Visited (4) 800 Robots Destroyed (24) 120 Value Destroyed (464) 464 Prototype IDs (0) 0 Alien Tech Used (0) 0 Bonus (0) 0 TOTAL SCORE: 1884 Bonus ------- None Cogmind --------- Core Integrity 298/400 Matter 290/300 Energy 100/100 System Corruption 3% Temperature Cool (0) Movement Core (50) Location -9/Mines Parts ------- > --- POWER (1) -------- (None) > --- PROPULSION (4) --- Light Treads Flexi-carbon Leg > --- UTILITY (2) ------ (None) > --- WEAPON (2) ------- Particle Gun > --- INVENTORY (5) ---- Improved Ion Engine Sensor Array Signal Interpreter Spread Laser Spread Laser Peak State ------------ > --- POWER ------------ Light Ion Engine > --- PROPULSION ------- Aluminum Leg Aluminum Leg Aluminum Leg Aluminum Leg > --- UTILITY ---------- Cooling System Structural Scanner > --- WEAPON ----------- Spread Laser Spread Laser > --- INVENTORY -------- Ion Engine Light Ion Engine Sensor Array Spread Laser Light Assault Rifle [Rating: 12] Favorites ----------- Power Light Ion Engine Engine Light Ion Engine Propulsion Aluminum Leg Treads Light Treads Leg Aluminum Leg Utility Cooling System Device Cooling System Protection Light Armor Plating Weapon Spread Laser Energy Gun Spread Laser Ballistic Gun Light Assault Rifle Launcher Grenade Launcher Build | -11 -10 -10 -9 -9 ------- Run | Yrd Mat Min Mat Min Slots Evolved 2 | . . . 2 . Power . | . . . . . Propulsion 2 | . . . 2 . Utility . | . . . . . Weapon . | . . . . . Parts Attached 24 | 6 5 . 11 2 Power 4 | 1 1 . 2 . Engine 4 | 1 1 . 2 . Core . | . . . . . Reactor . | . . . . . Propulsion 7 | 2 . . 4 1 Treads 2 | . . . 2 . Leg 5 | 2 . . 2 1 Wheel . | . . . . . Hover . | . . . . . Flight . | . . . . . Utility 5 | 1 2 . 2 . Device 4 | 1 2 . 1 . Storage . | . . . . . Processor . | . . . . . Hackware . | . . . . . Protection 1 | . . . 1 . Artifact . | . . . . . Weapon 8 | 2 2 . 3 1 Energy Gun 4 | . 2 . 2 . Energy Cannon . | . . . . . Ballistic Gun 2 | 2 . . . . Ballistic Cannon . | . . . . . Launcher 2 | . . . 1 1 Special Weapon . | . . . . . Impact Weapon . | . . . . . Slashing Weapon . | . . . . . Piercing Weapon . | . . . . . Special Melee Weapon . | . . . . . Unidentified Prototypes . | . . . . . Parts Lost 10 | . 1 . 2 7 Power 2 | . . . 1 1 Propulsion 4 | . . . 1 3 Utility 3 | . 1 . . 2 Weapon 1 | . . . . 1 Highest Loss Streak 7 | . 1 . 2 7 To Critical Strikes . | . . . . . Average Slot Usage (%) 92 | . 95 100 97 55 Engine 11 | . 14 14 10 4 Treads 3 | . . . 6 11 Leg 29 | . 28 28 35 16 Device 20 | . 24 28 19 3 Protection 1 | . . . 2 3 Energy Gun 22 | . 22 28 21 14 Ballistic Gun 1 | . 5 . . . Peak Build Rating 12 | 6 10 10 12 12 Average Rating 9 | 3 9 10 11 7 On Entrance 7 | . 6 10 10 12 Naked Turns . | . . . . . Heaviest Build 16 | 6 12 12 16 16 Greatest Support 20 | 20 20 20 20 20 Greatest Overweight (x) . | . . . . . Average Overweight (x) . | . . . . . Largest Inventory Capacity 5 | 5 5 5 5 5 Average Capacity 5 | 5 5 5 5 5 Most Carried 5 | 5 5 5 5 5 Average Carried 4 | 2 3 5 4 5 Final Capacity 5 | 5 5 5 5 5 Final Carried 5 | 2 5 5 5 5 Class Distribution -------------------- 76% | Mutant 23% | Scavenger-Mutant Dominant Class ---------------- Mutant | -10/Materials Mutant | -10/Mines Scavenger-Mutant | -9/Materials Mutant | -9/Mines Resources | -11 -10 -10 -9 -9 ----------- Run | Yrd Mat Min Mat Min Matter Collected 452 | 254 61 . 130 7 Remotely . | . . . . . Salvage Created 489 | 12 176 . 292 9 Parts 50 | 3 17 . 30 . Haulers Intercepted 2 | . 1 . 1 . Recyclers Shooed 1 | 1 . . . . Parts Field Recycled . | . . . . . Retrieved Matter . | . . . . . Parts Self-Destructed . | . . . . . Prevented . | . . . . . Kills | -11 -10 -10 -9 -9 ------- Run | Yrd Mat Min Mat Min Combat Hostiles Destroyed 19 | . 8 . 9 2 Guns 14 | . 8 . 6 . AOE 5 | . . . 3 2 Classes Destroyed 10 | 1 4 . 4 1 Worker 1 | . 1 . . . Builder 1 | . . . 1 . Tunneler 1 | 1 . . . . Hauler 2 | . 1 . 1 . Operator 1 | . . . 1 . Watcher 1 | . . . 1 . Swarmer 10 | . 6 . 4 . Grunt 3 | . 2 . 1 . Sentry 4 | . . . 4 . Assembled 2 | . . . . 2 Best Kill Streak 5 | 1 5 . 5 2 Combat Bots Only 5 | . 5 . 5 2 Max Kills in Single Turn 3 | 1 2 . 3 1 Gunslinging . | . . . . . Exploded 2 | . . . 2 1 Melee . | . . . . . Uniques/NPCs Destroyed . | . . . . . Combat | -11 -10 -10 -9 -9 -------- Run | Yrd Mat Min Mat Min Hostile Shots Fired 94 | . 34 . 34 26 Missed 25 | . 8 . 12 5 Damage Taken 1126 | . 263 . 437 426 Core 143 | . 41 . 47 55 Absorbed by Shields . | . . . . . Core Remaining (%) 91 | 100 . 83 . . Volleys Fired 49 | 5 15 . 26 3 Largest 2 | 2 2 . 2 2 Hottest 130 | 40 130 . 130 130 Shots Fired 97 | 10 30 . 51 6 Gun 93 | 10 30 . 49 4 Cannon . | . . . . . Launcher 4 | . . . 2 2 Special . | . . . . . Kinetic 10 | 10 . . . . Thermal 83 | . 30 . 49 4 Explosive 4 | . . . 2 2 Electromagnetic . | . . . . . Robot Hit Streak 9 | 2 9 . 9 4 Robot Miss Streak 8 | 2 7 . 8 4 Penetration Max . | . . . . . Secondary Targets 1 | . 1 . . . Max Gunslinging Chain 1 | . 1 . . . Shots Hit Robots 78 | 5 28 . 41 4 Core Hits 95 | 1 33 . 49 12 Critical Kills . | . . . . . Critical Parts Destroyed . | . . . . . Critical Strikes . | . . . . . Melee Attacks . | . . . . . Impact . | . . . . . Slashing . | . . . . . Piercing . | . . . . . Sneak Attacks . | . . . . . Combat Hostiles . | . . . . . Follow-up Attacks . | . . . . . Damage Inflicted 1356 | 37 319 . 753 247 Guns 955 | 37 319 . 563 36 Cannons . | . . . . . Explosions 401 | . . . 190 211 Melee . | . . . . . Ramming . | . . . . . Kinetic 37 | 37 . . . . Thermal 918 | . 319 . 563 36 Explosive 401 | . . . 190 211 Electromagnetic . | . . . . . Impact . | . . . . . Slashing . | . . . . . Piercing . | . . . . . Highest Corruption 3 | . . . . 3 Average Corruption 3 | . . . . 3 Corruption Purged . | . . . . . Corruption Blocked . | . . . . . Effects 2 | . . . . 2 Matter Fused 1 | . . . . 1 Data Loss (major) 1 | . . . . 1 Overload Shots . | . . . . . Overflow Damage 92 | . . . 47 45 Projectiles . | . . . . . Explosions 92 | . . . 47 45 Melee . | . . . . . Knockbacks . | . . . . . Impact . | . . . . . Kinetic . | . . . . . Secondary . | . . . . . Self-Inflicted Damage 211 | . . . 137 74 Shots 5 | . . . 3 2 Rammed . | . . . . . Targets Rammed . | . . . . . Kicked . | . . . . . Crushed . | . . . . . Highest Temperature 42 | . 42 . 15 9 Average Temperature 7 | . 10 . 5 4 Received Heat Transfer 257 | . 60 . 57 140 Siege Activations . | . . . . . Robots Corrupted . | . . . . . Combat Hostiles . | . . . . . Parts Fried . | . . . . . Impact Corruptions . | . . . . . Robots Melted . | . . . . . Combat Hostiles . | . . . . . Parts Melted . | . . . . . Heat Transferred 1374 | . 405 . 907 62 Parts Sabotaged . | . . . . . Parts Stolen . | . . . . . Parts Stripped . | . . . . . Power Chain Reactions . | . . . . . Alert | -11 -10 -10 -9 -9 ------- Run | Yrd Mat Min Mat Min Peak Influence 403 | 5 242 94 403 89 Initial 94 | . 3 94 36 89 Average 132 | 1 109 94 205 66 Maximum Alert Level 2 | . 1 . 2 . Low Security (%) 70 | 100 84 100 34 100 Level 1 29 | . 15 . 65 . Level 2 . | . . . . . Level 3 . | . . . . . Level 4 . | . . . . . Level 5 . | . . . . . High Security . | . . . . . Max Security . | . . . . . Squads Dispatched 1 | . . . 1 . Investigation . | . . . . . Extermination . | . . . . . Reinforcement 1 | . . . 1 . Assault . | . . . . . Garrison . | . . . . . Intercept . | . . . . . Searches Triggered . | . . . . . Construction Impeded . | . . . . . Haulers Reinforced . | . . . . . Active Scanning Responses . | . . . . . Cargo Convoy Interrupts . | . . . . . Stealth | -11 -10 -10 -9 -9 --------- Run | Yrd Mat Min Mat Min Distress Signals 3 | . 1 . 2 . Communications Jammed . | . . . . . Distress Signals . | . . . . . Times Spotted 42 | . 11 . 17 14 Peak Tracking Total 8 | . 6 . 6 8 Tactical Retreats 5 | . 2 . . 3 Traps | -11 -10 -10 -9 -9 ------- Run | Yrd Mat Min Mat Min Traps Triggered 1 | . 1 . . . Indirectly . | . . . . . Trap Hack Attempts . | . . . . . Triggered . | . . . . . Disarmed . | . . . . . Reprogrammed . | . . . . . Reused . | . . . . . Traps Extracted . | . . . . . Installed . | . . . . . Triggered . | . . . . . Machines | -11 -10 -10 -9 -9 ---------- Run | Yrd Mat Min Mat Min Machines Disabled 2 | . . . 2 . Max in Single Turn 2 | . . . 2 . Machines Repaired . | . . . . . Machines Dismantled . | . . . . . Machines Sabotaged . | . . . . . Overloaded Fab Kills . | . . . . . Hacking | -11 -10 -10 -9 -9 --------- Run | Yrd Mat Min Mat Min Machines Accessed 8 | . 3 . 5 . Terminals 8 | . 3 . 5 . Fabricators . | . . . . . Repair Stations . | . . . . . Recycling Units . | . . . . . Scanalyzers . | . . . . . Garrison Access . | . . . . . Total Hacks 24 | . 12 . 12 . Successful 8 | . 5 . 3 . Failed 16 | . 7 . 9 . Catastrophic 2 | . . . 2 . Database Lockouts . | . . . . . Manual 19 | . 10 . 9 . Terminals 24 | . 12 . 12 . Fabricators . | . . . . . Repair Stations . | . . . . . Recycling Units . | . . . . . Scanalyzers . | . . . . . Garrison Access . | . . . . . Terminal Hacks 4 | . 3 . 1 . Robot Analysis 1 | . 1 . . . Level Access Points 1 | . . . 1 . Terminal Index 1 | . 1 . . . Locate Traps 1 | . 1 . . . Fabricator Hacks . | . . . . . Repair Station Hacks . | . . . . . Recycling Unit Hacks . | . . . . . Scanalyzer . | . . . . . Garrison Access Hacks . | . . . . . Unauthorized Hacks 4 | . 2 . 2 . Terminals 4 | . 2 . 2 . Botnet 4 | . 2 . 2 . Fabricators . | . . . . . Repair Stations . | . . . . . Recycling Units . | . . . . . Scanalyzers . | . . . . . Garrison Access . | . . . . . Data Cores Recovered 1 | . . . 1 . Used . | . . . . . Hacking Detections 8 | . 3 . 5 . Full Trace Events . | . . . . . Feedback Events . | . . . . . Feedback Blocked . | . . . . . Robot Schematics Acquired . | . . . . . Robots Built . | . . . . . Authchips . | . . . . . Time . | . . . . . Total Robot Build Rating . | . . . . . Part Schematics Acquired . | . . . . . Parts Built . | . . . . . Authchips . | . . . . . Time . | . . . . . Total Part Build Rating . | . . . . . Parts Repaired . | . . . . . Time . | . . . . . Parts Recycled . | . . . . . Recycled Matter . | . . . . . Retrieved Matter . | . . . . . Retrieved Components . | . . . . . Parts Scanalyzed . | . . . . . Part Schematics Acquired . | . . . . . Parts Damaged . | . . . . . Bothacking | -11 -10 -10 -9 -9 ------------ Run | Yrd Mat Min Mat Min Used RIF Installer . | . . . . . Robots Hacked . | . . . . . Non-combat . | . . . . . Combat . | . . . . . Robot Hacks Applied . | . . . . . Relay Couplers Released . | . . . . . Fabnet Peak Effective % . | . . . . . Robots Rewired . | . . . . . Allies Hacked . | . . . . . Hacks Repelled . | . . . . . Allies | -11 -10 -10 -9 -9 -------- Run | Yrd Mat Min Mat Min Total Allies . | . . . . . Largest Group . | . . . . . Highest-Rated Group . | . . . . . Highest-Rated Ally . | . . . . . Total Orders . | . . . . . Ally Attacks . | . . . . . Total Damage . | . . . . . Kills . | . . . . . Allies Corrupted . | . . . . . Allies Melted . | . . . . . Intel | -11 -10 -10 -9 -9 ------- Run | Yrd Mat Min Mat Min Robot Analysis Total 1 | . 1 . . . Derelict Logs Recovered . | . . . . . Drone Launches . | . . . . . Drone Recoveries . | . . . . . Exploration | -11 -10 -10 -9 -9 ------------- Run | Yrd Mat Min Mat Min Turns Passed 1172 | 64 360 188 440 120 Spaces Moved 852 | 42 232 148 273 157 Core 134 | 18 . . . 116 Treads . | . . . . . Legs 718 | 24 232 148 273 41 Wheels . | . . . . . Hover . | . . . . . Flight . | . . . . . Fastest Speed 50 | 50 120 120 120 50 Average Speed 108 | 90 120 120 120 68 Slowest Speed 120 | 120 120 120 120 120 Overloaded Moves . | . . . . . Propulsion Burnouts . | . . . . . Robots Hopped . | . . . . . Cave-ins Triggered . | . . . . . Exploration Rate (%) 29 | 4 42 32 27 40 Regions Visited 4 Branch Regions 2 Pre-discovered Areas . | . . . . . Known Exits Taken . | . . . . . Unknown Exits Taken 4 | 1 1 1 1 . Scrap Searched 1 | . . 1 . . Spaces Dug . | . . . . . Terrain Destroyed 49 | . . . 30 19 Melee . | . . . . . Projectile . | . . . . . AOE 49 | . . . 30 19 Terrain Rammed . | . . . . . Walls Destroyed . | . . . . . Machines Disabled . | . . . . . Actions | -11 -10 -10 -9 -9 --------- Run | Yrd Mat Min Mat Min Total 994 | 58 282 158 334 162 Wait 54 | 1 27 11 15 . Move 848 | 41 231 147 272 157 Hop . | . . . . . Pick Up 12 | 5 3 . 4 . Fast Attach 8 | 3 2 . 2 1 Attach 5 | 3 . . 2 . Detach . | . . . . . Swap 11 | . 3 . 7 1 Drop 7 | . 1 . 6 . Fire 49 | 5 15 . 26 3 Melee . | . . . . . Ram . | . . . . . Kick . | . . . . . Crush . | . . . . . Escape Stasis . | . . . . . Rewire . | . . . . . Trap . | . . . . . Miscellaneous . | . . . . . Route ------- -11/Scrapyard -10/Materials (discovered 2 exits: [*Min x2]) -10/Mines -9/Materials (discovered 4 exits: Mat x3 / [*Min]) -9/Mines (discovered 1 exit: [*Exi]) History --------- Turn | Location | Event 17 | -11/Scrapyard | Discovered new exit (range 14) 65 | -11/Scrapyard | Entered Materials 183 | -10/Materials | Discovered new exit (range 11) 244 | -10/Materials | Discovered new exit (range 12) 317 | -10/Materials | Build established: Mutant 425 | -10/Materials | Entered Mines 442 | -10/Mines | Met a Derelict bent on vengeance 548 | -10/Mines | Discovered new exit (range 4) 613 | -10/Mines | Entered Materials 613 | -9/Materials | Evolved 2 slots: Propulsion x2 777 | -9/Materials | Identified exit to Materials 992 | -9/Materials | Discovered new exit (range 12) 1053 | -9/Materials | Entered Mines 1072 | -9/Mines | Assembled infested the area 1077 | -9/Mines | Assisted by a Guerilla fighting off Assembled 1143 | -9/Mines | Lost 7 parts (1p3n2u1w) 1171 | -9/Mines | Deemed a non-threat by the Exiles lab entrance 1171 | -9/Mines | Discovered new exit (range 5) 1173 | -9/Mines | Self-destructed Last Messages --------------- 01094_ Destroyed Lgt. Armor Plating. 01094_ Destroyed Asb. Hover Unit. 01094_ as-05204 destroyed. 01098_ Cooling System destroyed. 01105_ Ion Engine destroyed. 01105_ System corrupted by crushing effect (+3). 01105_ Knocked back. 01107_ System corrupted: Substantial component data lost. 01109_ as-40730 destroyed. 01109_ Aluminum Leg destroyed. 01109_ Destroyed Aluminum Leg. 01109_ Grenade Launcher destroyed. 01109_ Destroyed Grenade Launcher. 01112_ Aluminum Leg destroyed. 01130_ K-01 Serf destroyed. 01139_ System corrupted: Matter fused (-7). 01142_ Acquired Flexi-carbon Leg. 01149_ Acquired 7 matter. 01171_ "No threat detected, you may enter." 01171_ EXIT=FOUND Map ----- +----------------------------------------------------+ | ##??????????????# #?????? | | ##?????????????# #?????? | | ##????######### ##????? | | ### ##??## ###??? | | ??## #### ##?? | | ???## ## ####### #?? | | ????# #?????# #?? | | ????# ##?????## """ #?? | | ????# #??????## """ #?? | | ????# #???#### """ #?? | | ????# #??## ##?? | | ????## #??# ##??? | | ?????## ##??# ##???? | | ??????## ####???# ######????? | | ???????## #??????## ##?????????? | | ###### #???????####??????????? | | ##????????????????????? | | ##### #????????????????????? | | ????????### #????????????????????? | | ??????????# #????????????????????? | | ??????????# #????????????????????? | | ???####???# #????????????????????? | | ??## ??# #????????###?????????? | | ??# ## ##??????## ###???????? | | ??# ##?????# ###?????? | | ??# ####### ## @ #?????? | | ??## ####<#?????? | | ???###### #######???##?????? | | ????????## #??????????????? | | ?????????## """" #?????????????? | | ??????????## """" #?????????????? | | ???????????# """" #?????????????? | | ???????????# ##?????????????? | | ???????????## ###??????????????? | | ????????????#####????????????????? | | ?????????????????????????????????? | | ?????????????????????????????????? | | | | | | | | | | | | | | | | | | | | | | | | | | | +----------------------------------------------------+ Best States ------------- Heat Dissipation 50 Energy Generation 10 Energy Capacity 250 Matter Stores 300 Matter Capacity 300 Sight Range 16 Terrain Scan Density 10 Armor Coverage 150 Evasion (%) 55 Item Schematics ----------------- None Robot Schematics ------------------ None Fabricated ------------ Nothing Alien Tech Used ----------------- None Achievements -------------- None Challenges ------------ None Game ------ Seed DisruptionMetafiberDatajack Manual? 0 Play Time 00:17:11 Cumulative 211.7 hours Start 2024.09.02 @ 22:33:22 End 2024.09.03 @ 12:01:34 Sessions 5 Manual Loads 0 Difficulty Rogue Special Mode None Game No. 354 Rogue 354 Adventurer 0 Explorer 0 Win Type - Total 1 Types 1/0/0/0/0/0/0/0/0 Lore% 30 Gallery% 51 Achievement% 38 Wizard Run 0 Options --------- Layout 1 ASCII 0 Keyboard 1 Movement Vi Keybinds 0 Fullscreen 0 Font 20/SmallcapsGlow Map View 59x39 Zoom Use 0% Tactical HUD 1 Map Filters NONE Filters NONE Steam 1 RUN: f7a46136-0fff-4b3b-95d5-1df19b3a0aa8